fUST/lending_fUST_20260210
["ID","MTS","AMOUNT","RATE_DAILY","PERIOD"]
[404891138,1770654526876,-500.0,0.00032999,7]
[404891139,1770654526901,-500.0,0.00032999,7]
[404891140,1770654526926,-500.0,0.00032999,7]
[404891141,1770654526951,-500.0,0.00032999,7]
[404891142,1770654526982,-500.0,0.00032999,7]
[404891143,1770654527009,-500.0,0.00032999,7]
[404891144,1770654527041,-500.0,0.00032999,7]
[404891145,1770654527067,-427.78886743,0.00032999,7]
[404891146,1770654527096,-470.51404429,0.00032999,7]
[404891147,1770654527121,-500.0,0.00032999,7]
[404891148,1770654527146,-500.0,0.00032999,7]
[404891149,1770654527171,-500.0,0.00032999,7]
[404891150,1770654527198,-500.0,0.00032999,7]
[404891151,1770654527224,-500.0,0.00032999,7]
[404891152,1770654527248,-500.0,0.00032999,7]
[404891153,1770654527274,-500.0,0.00032999,7]
[404891154,1770654527301,-500.0,0.00032999,7]
[404891155,1770654527327,-500.0,0.00032999,7]
[404891156,1770654527351,-500.0,0.00032999,7]
[404891157,1770654527378,-500.0,0.00032999,7]
[404891158,1770654527404,-500.0,0.00032999,7]
[404891159,1770654527430,-500.0,0.00032999,7]
[404891160,1770654527455,-500.0,0.00032999,7]
[404891161,1770654527482,-500.0,0.00032999,7]
[404891162,1770654527504,-500.0,0.00032999,7]
[404891163,1770654527530,-500.0,0.00032999,7]
[404891164,1770654527556,-500.0,0.00032999,7]
[404891165,1770654527582,-500.0,0.00032999,7]
[404891166,1770654527606,-500.0,0.00032999,7]
[404891167,1770654527634,-500.0,0.00032999,7]
[404891168,1770654527660,-500.0,0.00032999,7]
[404891169,1770654527693,-500.0,0.00032999,7]
[404891170,1770654527725,-500.0,0.00032999,7]
[404891171,1770654527751,-500.0,0.00032999,7]
[404891172,1770654527776,-500.0,0.00032999,7]
[404891173,1770654527804,-500.0,0.00032999,7]
[404891174,1770654527831,-500.0,0.00032999,7]
[404891175,1770654527856,-500.0,0.00032999,7]
[404891176,1770654527883,-613.6141142,0.00032999,7]
[404891177,1770654527909,-500.0,0.00032999,7]
[404891178,1770654527936,-500.0,0.00032999,7]
[404891179,1770654527968,-500.0,0.00032999,7]
[404891180,1770654527994,-500.0,0.00032999,7]
[404891181,1770654528099,-500.0,0.00032999,7]
[404891182,1770654528125,-500.0,0.00032999,7]
[404891183,1770654528152,-500.0,0.00032999,7]
[404891184,1770654528180,-500.0,0.00032999,7]
[404891185,1770654528206,-500.0,0.00032999,7]
[404891186,1770654528235,-500.0,0.00032999,7]
[404891187,1770654528261,-500.0,0.00032999,7]
[404891188,1770654528287,-500.0,0.00032999,7]
[404891189,1770654528314,-500.0,0.00032999,7]
[404891190,1770654528340,-500.0,0.00032999,7]
[404891191,1770654528368,-500.0,0.00032999,7]
[404891192,1770654528396,-500.0,0.00032999,7]
[404891193,1770654528424,-500.0,0.00032999,7]
[404891194,1770654528452,-519.79378371,0.00032999,7]
[404891195,1770654528479,-500.0,0.00032999,7]
[404891196,1770654528506,-500.0,0.00032999,7]
[404891197,1770654528532,-500.0,0.00032999,7]
[404891198,1770654528560,-433652.97949169,0.00033,120]
[404891199,1770654528587,-2181.52,0.00033,14]
[404891200,1770654529467,27936.27017855,0.0003299,2]
[404891210,1770654537075,248.83,0.000268,30]
[404891254,1770654603171,6293.0,0.00027397,120]
[404891328,1770654632083,-334.45923056,0.00030137,2]
[404891330,1770654632095,-1293.25076944,0.00030137,2]
[404891332,1770654632104,-1548.9633971,0.00031097,2]
[404891334,1770654632115,-300.0,0.00032989,3]
[404891336,1770654632125,-300.0,0.00032989,3]
[404891338,1770654632134,-300.0,0.00032989,3]
[404891340,1770654632143,-1600.0,0.00032989,3]
[404891343,1770654632161,-1338.61482101,0.0003299,2]
[404891345,1770654632175,-16798.72707995,0.0003299,2]
[404891402,1770654637709,-53926.38792049,0.0003299,2]
[404891403,1770654637719,-250.0,0.00033692,2]
[404891404,1770654637730,-258.0,0.0003389,120]
[404891406,1770654637739,-3012.71547337,0.00035,120]
[404891408,1770654637749,-3221.45704523,0.000353,2]
[404891410,1770654637758,-2000.0,0.0003559,3]
[404891412,1770654637767,-150.05244969,0.0003589,120]
[404891414,1770654637777,-394.0922956,0.00035905,2]
[404891416,1770654637786,-510.69000155,0.00037,2]
[404891418,1770654637795,-482.7206671,0.00037461,2]
[404891420,1770654637805,-150.67034254,0.0003861,5]
[404891422,1770654637814,-238.075129,0.000387,30]
[404891423,1770654637823,-477.0,0.00038719,30]
[404891424,1770654637833,-100008.47067876,0.00038998,2]
[404891425,1770654637845,-180197.01236304,0.00038998,2]
[404891426,1770654637854,-180.0,0.00039,30]
[404891427,1770654637863,-1997.7130888,0.00039452,2]
[404891428,1770654637873,-394.0922956,0.00039651,2]
[404891429,1770654637882,-628.96330356,0.00039805,5]
[404891430,1770654637891,-152.71,0.00041096,120]
[404891431,1770654637900,-2694.62759857,0.00042305,2]
[404891432,1770654637909,-239.0,0.00042658,120]
[404891433,1770654637919,-157.63863227,0.00042658,120]
[404891434,1770654637928,-248.36876617,0.00042658,120]
[404891435,1770654637937,-248.36876617,0.00042658,120]
[404891436,1770654637946,-248.36876617,0.00042658,120]
[404891437,1770654637956,-18238.08062462,0.00042658,2]
[404891438,1770654637966,-482.7206671,0.00042763,2]
[404891439,1770654637976,-394.0922956,0.00043398,2]
[404891440,1770654637986,-150.68547047,0.000449,120]
[404891441,1770654637998,-5000.17255617,0.00046,90]
[404891442,1770654638007,-3109.7876471,0.00047,2]
[404891443,1770654638017,-482.7206671,0.00048064,2]
[404891444,1770654638026,-166.18,0.00049123,120]
[404891445,1770654638036,-500.0,0.00049486,120]
[404891446,1770654638046,-500.0,0.00049486,2]
[404891447,1770654638056,-500.0,0.0004976,120]
[404891448,1770654638067,-500.0,0.00050034,120]
[404891449,1770654638077,-500.0,0.00050308,120]
[404891450,1770654638087,-500.0,0.00050582,120]
[404891451,1770654638097,-500.0,0.00050856,120]
[404891452,1770654638107,-500.0,0.0005113,120]
[404891453,1770654638116,-500.0,0.00051404,120]
[404891454,1770654638126,-500.0,0.00051678,120]
[404891455,1770654638136,-500.0,0.00051952,120]
[404891456,1770654638145,-500.0,0.00052226,120]
[404891457,1770654638155,-500.0,0.000525,120]
[404891458,1770654638164,-500.0,0.00052774,120]
[404891459,1770654638174,-500.0,0.00053048,120]
[404891460,1770654638183,-500.0,0.00053322,120]
[404891461,1770654638192,-500.0,0.00053596,120]
[404891462,1770654638202,-500.0,0.0005387,120]
[404891463,1770654638212,-500.0,0.00054144,120]
[404891464,1770654638221,-500.0,0.00054418,120]
[404891465,1770654638231,-495.0024984,0.00054692,120]
[404891466,1770654638241,-270.01425596,0.0005602,120]
[404891467,1770654638251,-500.0,0.0005602,120]
[404891468,1770654638260,-512.91206475,0.0005602,120]
[404891469,1770654638270,-214.79197768,0.00057843,2]
[404891470,1770654638280,-400.0,0.000599,120]
[404891471,1770654638288,-2161.0,0.00061453,120]
[404891472,1770654638298,-632.0,0.00061453,120]
[404891473,1770654638307,-1375.0,0.00061453,120]
[404891474,1770654638317,-720.0,0.00061453,2]
[404891475,1770654638326,-180.0,0.00061453,120]
[404891476,1770654638336,-422.0,0.00061453,120]
[404891477,1770654638346,-386.62555982,0.00063987,2]
[404891478,1770654638355,-2159.0,0.00064453,120]
[404891479,1770654638365,-1370.0,0.00064453,120]
[404891480,1770654638374,-419.354,0.00064453,2]
[404891481,1770654638385,-180.0,0.00064453,120]
[404891482,1770654638395,-420.0,0.00064453,120]
[404891483,1770654638404,-380.75683515,0.00064757,2]
[404891484,1770654638414,-300.0,0.00065,120]
[404891485,1770654638428,-5470.58497884,0.00065594,2]
[404891486,1770654638438,-151.30633421,0.00066395,2]
[404891487,1770654638450,-169.546,0.00067453,120]
[404891488,1770654638459,-400.0,0.000699,120]
[404891489,1770654638469,-687.33432856,0.0007013,2]
[404891490,1770654638479,-1072.88592849,0.00076272,2]
[404891491,1770654638489,-400.0,0.000799,120]
[404891492,1770654638499,-8246.54235911,0.00088882,2]
[404891493,1770654638508,-200.16952152,0.00089122,10]
[404891494,1770654638518,-170.49,0.00089205,120]
[404891495,1770654638528,-400.0,0.000899,120]
[404891496,1770654638537,-400.0,0.000999,120]
[404891497,1770654638547,-214.68,0.001168,120]
[404891498,1770654638557,-782.0,0.001263,30]
[404891499,1770654638567,-10559.84017599,0.0013546,2]
[404891500,1770654638576,-500.0,0.00136986,90]
[404891501,1770654638586,-500.0,0.00136986,90]
[404891502,1770654638595,-500.0,0.00136986,90]
[404891503,1770654638604,-500.0,0.00136986,90]
[404891504,1770654638614,-500.0,0.00136986,90]
[404891505,1770654638623,-500.0,0.00136986,90]
[404891506,1770654638633,-500.0,0.00136986,90]
[404891507,1770654638642,-500.0,0.00136986,90]
[404891508,1770654638651,-500.0,0.00136986,90]
[404891509,1770654638661,-500.0,0.00136986,90]
[404891510,1770654638670,-500.0,0.00136986,90]
[404891511,1770654638680,-500.0,0.00136986,90]
[404891512,1770654638690,-500.0,0.00136986,90]
[404891513,1770654638700,-500.0,0.00136986,90]
[404891514,1770654638710,-500.0,0.00136986,90]
[404891515,1770654638721,-643.644708,0.00136986,90]
[404891516,1770654638731,-160.286486,0.00136986,120]
[404891517,1770654638741,-440.90389348,0.001499,120]
[404891518,1770654638751,-2981.76758877,0.0015,120]
[404891519,1770654638760,-2981.76758877,0.00152367,120]
[404891520,1770654638770,-2981.76758877,0.00154733,120]
[404891521,1770654638780,-2981.76758877,0.001571,120]
[404891522,1770654638789,-11022.49973937,0.00158748,2]
[404891523,1770654638799,-2981.76758877,0.00159467,120]
[404891524,1770654638809,-160.286486,0.00159817,120]
[404891525,1770654638819,-2981.76758877,0.00161833,120]
[404891526,1770654638830,-1026.52,0.00162,30]
[404891527,1770654638840,-2981.76758877,0.001642,120]
[404891528,1770654638850,-2981.76758877,0.00166567,120]
[404891529,1770654638860,-2981.76758877,0.00168933,120]
[404891530,1770654638870,-2981.76758877,0.001713,120]
[404891531,1770654638879,-2981.76758877,0.00173667,120]
[404891532,1770654638888,-2981.76758877,0.00176033,120]
[404891533,1770654638898,-2981.76758877,0.001784,120]
[404891534,1770654638907,-2981.76758877,0.00180767,120]
[404891535,1770654638917,-11256.99223292,0.00182037,2]
[404891536,1770654638928,-160.286486,0.00182648,120]
[404891537,1770654638939,-2981.76758877,0.00183133,120]
[404891538,1770654638949,-2981.76758877,0.001855,120]
[404891539,1770654638959,-200.16952152,0.0018593,30]
[404891540,1770654638968,-2981.76758877,0.00187867,120]
[404891541,1770654638978,-2981.76758877,0.00190233,120]
[404891542,1770654638990,-2981.76758877,0.001926,120]
[404891543,1770654639002,-2981.76758877,0.00194967,120]
[404891544,1770654639012,-2981.76758877,0.00197333,120]
[404891545,1770654639021,-536.92187172,0.001997,120]
[404891569,1770654645977,-1432.42058136,0.00039,14]
[404891571,1770654646491,-530.93941864,0.00039,14]
[404891572,1770654646501,-1963.36,0.000517,14]
[404891573,1770654646512,-1963.36,0.000664,14]
[404891574,1770654646522,-2444.84571705,0.001997,120]
[404891575,1770654646531,-269.0,0.001997,120]
[404891576,1770654646543,-2981.76758877,0.00202067,120]
[404891577,1770654646553,-2981.76758877,0.00204433,120]
[404891578,1770654646562,-12410.47842951,0.00205326,2]
[404891579,1770654646572,-160.286486,0.00205479,120]
[404891580,1770654646582,-2981.76758877,0.002068,120]
[404891581,1770654646591,-4563.16755253,0.00207225,120]
[404891582,1770654646600,-2981.76758877,0.00209167,120]
[404891583,1770654646609,-2981.76758877,0.00211533,120]
[404891584,1770654646619,-2981.76758877,0.002139,120]
[404891585,1770654646628,-167.56,0.00214,30]
[404891586,1770654646639,-2981.76758877,0.00216267,120]
[404891587,1770654646648,-214.68,0.002168,120]
[404891588,1770654646657,-2981.76758877,0.00218633,120]
[404891589,1770654646666,-10381.63607489,0.0022,120]
[404891590,1770654646675,-858.77,0.0022499,120]
[404891591,1770654646685,-1567.07722188,0.00225,120]
[404891592,1770654646694,-1027.365051,0.002258,120]
[404891593,1770654646703,-160.286486,0.0022831,120]
[404891594,1770654646714,-3531.08079677,0.00228614,2]
[404891595,1770654646725,-10267.37632287,0.00228614,2]
[404891596,1770654646735,-10000.0,0.002288,120]
[404891597,1770654646744,-200.0,0.0023,120]
[404891598,1770654646753,-1000.0,0.0023,120]
[404891599,1770654646762,-10000.0,0.002378,120]
[404891600,1770654646772,-6561.90470962,0.0023788,120]
[404891605,1770654647110,-1963.36,0.00208,30]
[404891606,1770654647120,-7940.01,0.0023788,120]
[404891627,1770654690287,150.0,0.00021918,2]
[404891628,1770654690337,304.61550297,0.00022466,2]
[404891631,1770654699998,1041.66666667,0.00028,2]
[404891635,1770654717961,978.31904821,0.00028,2]
[404891663,1770654903131,227.37609222,0.00027397,120]
[404891695,1770655137611,-63.34761846,0.00028,2]
[404891696,1770655137638,-225.32,0.000299,2]
[404891697,1770655137663,-413.52706452,0.0003448,2]
[404891698,1770655137689,-2196.92790949,0.00036149,2]
[404891699,1770655137717,-1575.0,0.00037587,3]
[404891700,1770655137745,-400.0,0.00037587,2]
[404891701,1770655137769,-291.0,0.00038719,30]
[404891702,1770655137794,-2958.31599,0.00039759,2]
[404891703,1770655137820,-401.0,0.0004003,11]
[404891704,1770655137847,-560.0,0.00040194,5]
[404891705,1770655137872,-399.0,0.0004197,16]
[404891706,1770655137897,-542.67414106,0.0004298,31]
[404891707,1770655137924,-394.08812262,0.0004298,31]
[404891708,1770655137950,-475.0816791,0.0004298,31]
[404891709,1770655137976,-500.0,0.0004298,31]
[404891710,1770655138003,-500.0,0.0004298,31]
[404891711,1770655138030,-500.0,0.0004298,31]
[404891712,1770655138060,-500.0,0.0004298,31]
[404891713,1770655138085,-311.25383119,0.0004298,31]
[404891714,1770655138111,-500.0,0.0004298,7]
[404891715,1770655138136,-500.0,0.0004298,31]
[404891716,1770655138166,-500.0,0.0004298,31]
[404891717,1770655138191,-500.0,0.0004298,31]
[404891718,1770655138221,-500.0,0.0004298,31]
[404891719,1770655138248,-500.0,0.0004298,7]
[404891720,1770655138274,-500.0,0.0004298,31]
[404891721,1770655138301,-500.0,0.0004298,31]
[404891722,1770655138328,-177.93622791,0.0004298,31]
[404891723,1770655138356,-500.0,0.0004298,31]
[404891724,1770655138384,-500.0,0.0004298,31]
[404891725,1770655138413,-500.0,0.0004298,31]
[404891726,1770655138540,-234.84601269,0.0004298,7]
[404891727,1770655138568,-500.0,0.0004298,31]
[404891728,1770655138597,-237.05140443,0.0004298,31]
[404891729,1770655138623,-500.0,0.0004298,31]
[404891730,1770655138649,-500.0,0.0004298,31]
[404891731,1770655138678,-500.0,0.0004298,31]
[404891732,1770655138704,-500.0,0.0004298,31]
[404891733,1770655138733,-500.0,0.0004298,31]
[404891734,1770655138760,-500.0,0.0004298,31]
[404891735,1770655138787,-500.0,0.0004298,31]
[404891736,1770655138816,-500.0,0.0004298,31]
[404891737,1770655138842,-500.0,0.0004298,31]
[404891738,1770655138868,-500.0,0.0004298,31]
[404891739,1770655138895,-500.0,0.0004298,31]
[404891740,1770655138931,-500.0,0.0004298,31]
[404891741,1770655138962,-500.0,0.0004298,31]
[404891742,1770655138992,-500.0,0.0004298,31]
[404891743,1770655139020,-500.0,0.0004298,31]
[404891744,1770655139048,-500.0,0.0004298,31]
[404891745,1770655139078,-500.0,0.0004298,31]
[404891746,1770655139105,-500.0,0.0004298,31]
[404891747,1770655139135,-500.0,0.0004298,31]
[404891748,1770655139168,-500.0,0.0004298,31]
[404891749,1770655139198,-500.0,0.0004298,31]
[404891750,1770655139225,-518.34114004,0.0004298,31]
[404891751,1770655139252,-500.0,0.0004298,31]
[404891752,1770655139279,-500.0,0.0004298,31]
[404891753,1770655139307,-500.0,0.0004298,31]
[404891754,1770655139338,-500.0,0.0004298,31]
[404891755,1770655139369,-500.0,0.0004298,31]
[404891756,1770655139398,-500.0,0.0004298,31]
[404891757,1770655139427,-500.0,0.0004298,31]
[404891758,1770655139457,-500.0,0.0004298,31]
[404891759,1770655139484,-500.0,0.0004298,31]
[404891760,1770655139512,-500.0,0.0004298,31]
[404891761,1770655139539,-500.0,0.0004298,31]
[404891762,1770655139572,-500.0,0.0004298,31]
[404891763,1770655139603,-500.0,0.0004298,31]
[404891764,1770655139633,-500.0,0.0004298,31]
[404891765,1770655139661,-500.0,0.0004298,31]
[404891766,1770655139689,-499.99999999,0.0004298,31]
[404891767,1770655139715,-500.0,0.0004298,31]
[404891768,1770655139744,-783.0,0.00042981,5]
[404891769,1770655139770,-50000.0,0.00042981,2]
[404891770,1770655139800,-153.63812405,0.00043636,2]
[404891771,1770655139828,-5609.32812685,0.00043736,28]
[404891772,1770655139854,-150.0,0.00043836,10]
[404891773,1770655139880,-741.77891082,0.00044106,2]
[404891774,1770655139907,-150.0,0.00044106,120]
[404891775,1770655139933,-6967.0512871,0.0004435,2]
[404891776,1770655139958,-250.0,0.00044384,10]
[404891777,1770655139982,-350.0,0.00044932,10]
[404891778,1770655140010,-251.2653,0.0004497,2]
[404891779,1770655140036,-227.39919551,0.00045479,10]
[404891798,1770655235093,200.0,0.00027,120]
[404891861,1770655373490,5000.0,0.00027,2]
[404891943,1770655831679,-400.0,0.00031999,2]
[404891945,1770655831689,-270.94,0.00032,2]
[404891953,1770655831762,-8622.6704274,0.00032,2]
[404891955,1770655831774,-543.0,0.00032,2]
[404892157,1770655834545,455.10149856,0.00027,2]
[404892171,1770655837864,-9185.3895726,0.00032,2]
[404892172,1770655837874,-200.0,0.000323,120]
[404892173,1770655837883,-682.66711374,0.00033,2]
[404892174,1770655837892,-415.22793383,0.00033191,7]
[404892175,1770655837901,-500.0,0.00033191,7]
[404892176,1770655837910,-500.0,0.00033191,7]
[404892177,1770655837919,-408.65958088,0.00033191,7]
[404892178,1770655837927,-500.0,0.00033191,7]
[404892179,1770655837936,-451.834114,0.00033191,7]
[404892180,1770655837947,-500.0,0.00033192,120]
[404892181,1770655837956,-7083.10856758,0.00033194,2]
[404892182,1770655837965,-560.0,0.00034417,2]
[404892183,1770655837975,-4908.16211102,0.00036917,2]
[404892184,1770655837985,-451.0,0.00037017,2]
[404892185,1770655837995,-285.0,0.00038719,30]
[404892186,1770655838004,-267.7004165,0.00039401,60]
[404892188,1770655838013,-741.48751943,0.00039487,2]
[404892190,1770655838022,-1041.66666667,0.00039487,2]
[404892191,1770655838036,-2659.39715903,0.00041994,2]
[404892192,1770655838045,-528.4879651,0.00042724,2]
[404892193,1770655838054,-150.0,0.00043836,10]
[404892194,1770655838064,-250.0,0.00044384,10]
[404892195,1770655838074,-350.0,0.00044932,10]
[404892196,1770655838083,-359.05837592,0.00045466,10]
[404892197,1770655838092,-150.0,0.00045466,120]
[404892198,1770655838102,-500.0,0.00045467,120]
[404892199,1770655838112,-3200.87797827,0.00045468,2]
[404892200,1770655838122,-450.0,0.00045479,10]
[404892201,1770655838131,-550.0,0.00046027,10]
[404892202,1770655838140,-611.5685017,0.00046428,2]
[404892203,1770655838149,-650.0,0.00046575,10]
[404892204,1770655838159,-500.0,0.00046999,120]
[404892205,1770655838168,-500.0,0.00046999,120]
[404892206,1770655838178,-500.0,0.00046999,30]
[404892207,1770655838188,-750.0,0.00047123,10]
[404892208,1770655838197,-4133.47860856,0.00047208,2]
[404892209,1770655838207,-177.0,0.00047466,120]
[404892210,1770655838216,-850.0,0.00047671,10]
[404892211,1770655838227,-1025.77352952,0.00048219,10]
[404892212,1770655838236,-275.86168584,0.0004849,120]
[404892213,1770655838246,-500.0,0.0004849,120]
[404892214,1770655838256,-3066.86029955,0.00048491,2]
[404892215,1770655838363,-1188.52373,0.00049042,2]
[404892216,1770655838372,-464.86258573,0.00049145,120]
[404892217,1770655838382,-388.61,0.00049145,30]
[404892218,1770655838393,-585.23435117,0.00049315,120]
[404892219,1770655838402,-500.0,0.00049315,120]
[404892220,1770655838411,-151.0,0.00049315,120]
[404892221,1770655838420,-500.0,0.00049315,120]
[404892222,1770655838431,-204.0,0.00049466,120]
[404892223,1770655838440,-500.0,0.00049588,120]
[404892224,1770655838449,-500.0,0.00049589,120]
[404892225,1770655838458,-500.0,0.00049589,120]
[404892226,1770655838467,-500.0,0.00049863,120]
[404892227,1770655838478,-500.0,0.00049863,120]
[404892228,1770655838487,-1000.0,0.0005,120]
[404892229,1770655838496,-500.0,0.00050136,120]
[404892230,1770655838505,-500.0,0.00050136,120]
[404892231,1770655838514,-500.0,0.0005041,120]
[404892232,1770655838524,-500.0,0.0005041,120]
[404892233,1770655838535,-500.0,0.00050684,120]
[404892234,1770655838545,-500.0,0.00050684,120]
[404892235,1770655838555,-500.0,0.00050958,120]
[404892236,1770655838565,-500.0,0.00050958,120]
[404892237,1770655838574,-1188.52373,0.00051106,2]
[404892238,1770655838584,-499.63528804,0.00051232,120]
[404892239,1770655838594,-500.0,0.00051232,120]
[404892240,1770655838604,-231.0,0.00051466,120]
[404892241,1770655838613,-500.0,0.00051506,120]
[404892242,1770655838623,-500.0,0.0005178,120]
[404892243,1770655838632,-500.0,0.00052054,120]
[404892244,1770655838642,-500.0,0.00052328,120]
[404892245,1770655838651,-500.0,0.00052602,120]
[404892246,1770655838661,-500.0,0.00052876,120]
[404892247,1770655838670,-500.0,0.0005315,120]
[404892248,1770655838679,-1188.52373,0.00053171,2]
[404892249,1770655838688,-502.39856103,0.00053424,120]
[404892250,1770655838698,-258.0,0.00053466,120]
[404892251,1770655838706,-151.0,0.00054761,2]
[404892252,1770655838714,-151.0,0.00054761,2]
[404892253,1770655838724,-151.0,0.00054761,2]
[404892254,1770655838732,-151.0,0.00054761,2]
[404892255,1770655838740,-151.0,0.00054761,2]
[404892256,1770655838750,-151.0,0.00054761,2]
[404892257,1770655838760,-151.0,0.00054761,2]
[404892258,1770655838769,-151.0,0.00054761,2]
[404892259,1770655838778,-151.0,0.00054761,2]
[404892260,1770655838787,-151.0,0.00054761,2]
[404892261,1770655838796,-151.0,0.00054761,2]
[404892262,1770655838805,-157.57875625,0.00054761,2]
[404892263,1770655838815,-500.0,0.00054793,120]
[404892264,1770655838824,-1250.0,0.00054794,2]
[404892265,1770655838834,-1250.0,0.00054794,2]
[404892266,1770655838843,-1250.0,0.00054794,2]
[404892267,1770655838854,-1250.0,0.00054794,2]
[404892268,1770655838863,-1250.0,0.00054794,2]
[404892269,1770655838872,-1250.0,0.00054794,2]
[404892270,1770655838881,-1250.0,0.00054794,2]
[404892271,1770655838890,-1250.0,0.00054794,2]
[404892272,1770655838900,-1250.0,0.00054794,2]
[404892273,1770655838909,-1250.0,0.00054794,2]
[404892274,1770655838918,-1250.0,0.00054794,2]
[404892275,1770655838928,-1250.0,0.00054794,2]
[404892276,1770655838937,-1250.0,0.00054794,2]
[404892277,1770655838946,-1250.0,0.00054794,2]
[404892278,1770655838955,-1250.0,0.00054794,2]
[404892279,1770655838964,-1250.0,0.00054794,2]
[404892280,1770655838974,-1250.0,0.00054794,2]
[404892281,1770655838984,-1250.0,0.00054794,2]
[404892282,1770655838993,-1250.0,0.00054794,2]
[404892283,1770655839003,-1250.0,0.00054794,2]
[404892284,1770655839013,-1250.0,0.00054794,2]
[404892285,1770655839023,-1250.0,0.00055068,2]
[404892286,1770655839033,-167.56,0.000551,14]
[404892287,1770655839042,-1188.52373,0.00055235,2]
[404892288,1770655839051,-232.689232,0.00055309,2]
[404892289,1770655839060,-1250.0,0.00055342,2]
[404892290,1770655839070,-230.57554744,0.00055466,120]
[404892291,1770655839080,-1250.11310553,0.00055616,2]
[404892292,1770655839088,-500.0,0.00057299,120]
[404892293,1770655839098,-1188.52373,0.000573,2]
[404892294,1770655839107,-711.0,0.00058867,31]
[404892295,1770655839117,-3054.66621369,0.00059354,5]
[404892296,1770655839127,-1188.52373,0.00059364,2]
[404892297,1770655839136,-265.29653948,0.00063649,2]
[404892298,1770655839145,-5396.92133252,0.00065297,2]
[404892299,1770655839155,-500.0,0.00065999,120]
[404892300,1770655839164,-30000.0,0.00066,120]
[404892301,1770655839173,-256.43138748,0.00066434,120]
[404892302,1770655839182,-251.2653,0.00067455,30]
[404892303,1770655839192,-324.7268678,0.00067613,2]
[404892304,1770655839201,-477.53377106,0.00070834,2]
[404892305,1770655839210,-584.50836204,0.00073768,2]
[404892306,1770655839221,-848.94892632,0.0007802,2]
[404892307,1770655839232,-1039.12597696,0.00079923,2]
[404892308,1770655839242,-553.464,0.00081814,2]
[404892309,1770655839251,-522.761,0.00081814,120]
[404892310,1770655839262,-1326.48269738,0.00085205,2]
[404892311,1770655839272,-1623.634339,0.00086077,2]
[404892312,1770655839281,-8134.44550601,0.000886,2]
[404892314,1770655839291,-2338.03344816,0.00092232,2]
[404892316,1770655839300,-1000.0,0.001,120]
[404892317,1770655839309,-8590.69953493,0.00111902,2]
[404892318,1770655839319,-214.68,0.001168,120]
[404892319,1770655839328,-3054.66621369,0.0012899,23]
[404892321,1770655839337,-15000.0,0.00129,120]
[404892322,1770655839346,-530.11,0.00129,30]
[404892324,1770655839359,-780.0,0.0013,30]
[404892325,1770655839372,-487.0,0.00133789,120]
[404892326,1770655839381,-487.0,0.00133789,120]
[404892327,1770655839390,-487.0,0.00133789,120]
[404892328,1770655839401,-487.0,0.00133789,120]
[404892329,1770655839411,-487.0,0.00133789,120]
[404892330,1770655839421,-487.0,0.00133789,120]
[404892331,1770655839431,-487.0,0.00133789,120]
[404892332,1770655839440,-487.0,0.00133789,120]
[404892334,1770655839449,-487.0,0.00133789,120]
[404892336,1770655839459,-487.0,0.00133789,120]
[404892337,1770655839468,-487.0,0.00133789,120]
[404892338,1770655839478,-487.0,0.00133789,120]
[404892339,1770655839486,-487.0,0.00133789,120]